Cogmind - Beta 16 --- EXPLORER MODE // 2025.12.03 @ 10:56:53 Player: K.K.Y. Result: Destroyed by XX-40L(R) with Subdweller Laser Performance ------------- Evolutions (0) 0 Regions Visited (3) 600 Robots Destroyed (57) 285 Value Destroyed (1233) 1233 Prototype IDs (12) 240 Alien Tech Used (0) 0 Bonus (0) 0 TOTAL SCORE: 2358 Bonus ------- None Cogmind --------- Core Integrity 0/250 Matter 300/300 Energy 260/265 System Corruption 2% Temperature Cool (6) Movement Treading (160) Location -10/Subcaves Parts ------- > --- POWER (1) -------- Improved Ion Engine > --- PROPULSION (2) --- Light Treads Spiked Treads > --- UTILITY (3) ------ Large Storage Unit Terrain Scan Processor > --- WEAPON (2) ------- Riot Gun Makeshift Sword > --- INVENTORY (15) --- Scrap Suit Humpback Sensor Array Improved Terrain Scanner Seismic Detector Core Shielding Core Shielding Scrap Shield Makeshift System Restoration Module Battle Cannon Battle Cannon Battle Cannon Peak State ------------ > --- POWER ------------ Improved Ion Engine > --- PROPULSION ------- Light Treads Spiked Treads > --- UTILITY ---------- Large Storage Unit Improved Terrain Scanner Terrain Scan Processor > --- WEAPON ----------- Riot Gun Makeshift Sword > --- INVENTORY -------- Scrap Suit Humpback Sensor Array Improved Terrain Scanner Seismic Detector Core Shielding Core Shielding Scrap Shield Makeshift System Restoration Module Battle Cannon Battle Cannon Battle Cannon [Rating: 21] Favorites ----------- Power Ion Engine Engine Ion Engine Propulsion Light Treads Treads Light Treads Utility Improved Terrain Scanner Device Improved Terrain Scanner Storage Large Storage Unit Processor Terrain Scan Processor Weapon Medium Laser Energy Gun Medium Laser Ballistic Gun Makeshift Shrapnel Gun Ballistic Cannon Battle Cannon Special Weapon Mining Laser Slashing Weapon Makeshift Sword Build | -11 -10 -10 -10 ------- Run | Yrd Mat Min Sub Slots Evolved 1 | . 1 . . Power . | . . . . Propulsion . | . . . . Utility 1 | . 1 . . Weapon . | . . . . Parts Attached 29 | 4 8 1 16 Power 6 | . 3 . 3 Engine 6 | . 3 . 3 Core . | . . . . Reactor . | . . . . Propulsion 6 | . 2 . 4 Treads 6 | . 2 . 4 Leg . | . . . . Wheel . | . . . . Hover . | . . . . Flight . | . . . . Utility 7 | 2 1 1 3 Device 4 | 1 . . 3 Storage 2 | 1 . 1 . Processor 1 | . 1 . . Hackware . | . . . . Protection . | . . . . Artifact . | . . . . Weapon 10 | 2 2 . 6 Energy Gun 5 | 2 2 . 1 Energy Cannon . | . . . . Ballistic Gun 2 | . . . 2 Ballistic Cannon 1 | . . . 1 Launcher . | . . . . Special Weapon 1 | . . . 1 Impact Weapon . | . . . . Slashing Weapon 1 | . . . 1 Piercing Weapon . | . . . . Special Melee Weapon . | . . . . Unidentified Prototypes . | . . . . Parts Lost 12 | . 2 . 10 Power 3 | . 1 . 2 Propulsion 3 | . . . 3 Utility 2 | . . . 2 Weapon 4 | . 1 . 3 Highest Loss Streak 2 | . 1 . 2 To Critical Strikes . | . . . . Average Backups 10 | 6 8 11 11 Power 1 | . . 1 1 Propulsion 1 | 1 1 2 1 Utility 6 | 3 4 5 7 Weapon 1 | . 1 2 1 Tool/Special . | . . . . Unused Backups 14 | 1 . . 13 Power . | . . . . Propulsion . | . . . . Utility 9 | . . . 9 Weapon 5 | 1 . . 4 Tool/Special . | . . . . Average Slot Usage (%) 94 | . 89 100 94 Engine 10 | . 10 12 10 Treads 23 | . 23 25 22 Device 11 | . 12 12 11 Storage 12 | . 12 12 12 Processor 10 | . 5 12 12 Energy Gun 14 | . 24 25 9 Ballistic Gun 5 | . . . 7 Ballistic Cannon 1 | . . . 1 Special Weapon 1 | . . . 1 Slashing Weapon 1 | . . . 2 Peak Build Rating 21 | 7 12 13 21 Average Rating 13 | 3 10 12 15 On Entrance 8 | . 7 12 13 Avg Prop Armor Cover (%) . | . . . . Naked Turns . | . . . . Heaviest Build 33 | 14 20 30 33 Greatest Support 40 | 3 40 40 40 Greatest Overweight (x) 4 | 4 4 . 1 Average Overweight (x) . | 2 . . . Largest Inventory Capacity 15 | 10 10 15 15 Average Capacity 13 | 9 10 14 15 Most Carried 15 | 9 10 15 15 Average Carried 12 | 7 8 12 13 Final Capacity 15 | 10 10 15 15 Final Carried 15 | 8 9 15 15 Class Distribution -------------------- 77% | Hacker-Mutant 22% | Scavenger-Mutant Dominant Class ---------------- Hacker-Mutant | -10/Materials Hacker-Mutant | -10/Mines Hacker-Mutant | -10/Subcaves Resources | -11 -10 -10 -10 ----------- Run | Yrd Mat Min Sub Matter Collected 957 | 240 99 50 568 Remotely . | . . . . Salvage Created 1974 | 174 907 415 478 Parts 104 | 15 40 16 33 Haulers Intercepted 2 | . 2 . . Recyclers Shooed 2 | 1 1 . . Parts Field Recycled . | . . . . Retrieved Matter . | . . . . Parts Self-Destructed . | . . . . Prevented . | . . . . Parts Restored . | . . . . Kills | -11 -10 -10 -10 ------- Run | Yrd Mat Min Sub Combat Hostiles Destroyed 30 | . 9 4 17 Melee 4 | . . . 4 Guns 23 | . 7 4 12 AOE 2 | . 2 . . Classes Destroyed 10 | 3 5 . 2 Worker 7 | 1 5 1 . Builder 3 | . 3 . . Tunneler 7 | 3 1 3 . Hauler 2 | . 2 . . Recycler 5 | 1 3 1 . Watcher 3 | . 3 . . Swarmer 4 | . 2 2 . Grunt 9 | . 7 2 . Sentry 1 | . . . 1 Subdweller 16 | . . . 16 Best Kill Streak 6 | 2 6 2 2 Combat Bots Only 3 | . 3 2 2 Max Kills in Single Turn 2 | 1 2 2 1 Gunslinging 1 | . . 1 . Exploded 2 | . 2 . . Melee 1 | . . . 1 Uniques/NPCs Destroyed . | . . . . Combat | -11 -10 -10 -10 -------- Run | Yrd Mat Min Sub Hostile Shots Fired 144 | . 41 14 89 Missed 37 | . 10 4 23 Hits 107 | . 31 10 66 Projectile 107 | . 31 10 66 AOE 2 | . . . 2 Critical Strikes 1 | . . . 1 Damage Taken 1391 | . 325 91 975 Core 257 | . 48 19 190 Absorbed by Shields . | . . . . Ignored by Resistances 810 | . 203 54 553 Core Remaining (%) 100 | 100 . . . Volleys Fired 149 | 15 52 20 62 Largest 2 | 2 2 2 2 Hottest 150 | 80 100 100 150 Shots Fired 275 | 19 102 40 114 Gun 257 | 19 102 40 96 Cannon 2 | . . . 2 Launcher . | . . . . Special 16 | . . . 16 Kinetic 33 | . . . 33 Thermal 221 | 15 90 40 76 Explosive . | . . . . Electromagnetic 21 | 4 12 . 5 Robot Hit Streak 73 | 13 29 13 73 Robot Miss Streak 3 | 1 3 1 1 Penetration Max . | . . . . Secondary Targets 4 | . 1 2 1 Max Gunslinging Chain 1 | . 1 1 1 Shots Hit Robots 219 | 17 82 31 89 Core Hits 96 | 6 38 16 36 Critical Kills . | . . . . Critical Parts Destroyed . | . . . . Critical Strikes 19 | . 11 3 5 Burn 18 | . 10 3 5 Corrupt 1 | . 1 . . Melee Attacks 20 | . . . 20 Impact . | . . . . Slashing 20 | . . . 20 Piercing . | . . . . Sneak Attacks . | . . . . Combat Hostiles . | . . . . Follow-up Attacks . | . . . . Damage Inflicted 3495 | 187 1196 383 1729 Guns 2849 | 187 1024 383 1255 Cannons . | . . . . Explosions 172 | . 172 . . Melee 426 | . . . 426 Ramming . | . . . . Kinetic 681 | . . . 681 Thermal 2159 | 163 1078 383 535 Explosive . | . . . . Electromagnetic 229 | 24 118 . 87 Impact . | . . . . Slashing 426 | . . . 426 Piercing . | . . . . Highest Corruption 2 | . 2 2 2 Average Corruption 1 | . 1 2 2 Corruption Purged . | . . . . Corruption Blocked . | . . . . Effects 121 | . 12 25 84 Message Errors 27 | . 5 7 15 Matter Fused 36 | . 3 7 26 Heat Flow Errors 14 | . 3 1 10 Energy Discharges 12 | . . 1 11 Parts Fused 1 | . . . 1 Data Loss (minor) 22 | . . 8 14 Data Loss (major) 3 | . . . 3 Misfires 4 | . 1 . 3 Alerts 2 | . . 1 1 Overload Shots . | . . . . Overflow Damage 1 | . 1 . . Projectiles . | . . . . Explosions 1 | . 1 . . Melee . | . . . . Knockbacks . | . . . . Impact . | . . . . Kinetic . | . . . . Secondary . | . . . . Self-Inflicted Damage 25 | . 25 . . Shots 1 | . 1 . . Rammed . | . . . . Targets Rammed . | . . . . Kicked . | . . . . Crushed . | . . . . Highest Temperature 390 | 9 390 257 236 Average Temperature 86 | 4 95 74 82 Received Heat Transfer 618 | . 207 84 327 Effects 1 | . 1 . . Energy Bleed 1 | . 1 . . Siege Activations . | . . . . Martial Activations . | . . . . Shielding Activations . | . . . . Robots Disrupted . | . . . . Combat Hostiles . | . . . . Robots Corrupted . | . . . . Combat Hostiles . | . . . . Parts Fried 1 | . . . 1 Impact Corruptions . | . . . . Robots Melted 1 | . . . 1 Combat Hostiles 1 | . . . 1 Parts Melted 14 | . 9 3 2 Heat Transferred 7191 | 375 3534 1369 1913 Parts Sabotaged . | . . . . Parts Stolen . | . . . . Parts Stripped . | . . . . Power Chain Reactions 2 | . 2 . . Alert | -11 -10 -10 -10 ------- Run | Yrd Mat Min Sub Maximum Alert Level . | . . . . Low Security (%) 100 | 100 100 100 . Level 1 . | . . . . Level 2 . | . . . . Level 3 . | . . . . Level 4 . | . . . . Level 5 . | . . . . High Security . | . . . . Max Security . | . . . . Peak Influence 75 | 5 75 35 . Initial . | . . . . Average 4 | . 7 1 . Influence Increases 506 | 25 321 140 20 Destroy 0b10 Robot/C 280 | . 180 80 20 Destroy 0b10 Robot/NC 150 | 25 85 40 . Destroy Leader 60 | . 40 20 . Successful Hack 4 | . 4 . . Disable Machine 4 | . 4 . . Destroy Structure 8 | . 8 . . Influence Decreases 506 | 25 321 140 20 Time Decay 494 | 25 309 140 20 Lost Part 10 | . 10 . . Purge Threat 2 | . 2 . . Squads Dispatched 1 | . 1 . . Investigation 1 | . 1 . . Extermination . | . . . . Reinforcement . | . . . . Assault . | . . . . Garrison . | . . . . Intercept . | . . . . Searches Triggered . | . . . . Construction Impeded . | . . . . Haulers Reinforced . | . . . . Active Scanning Responses . | . . . . Cargo Convoy Interrupts . | . . . . Stealth | -11 -10 -10 -10 --------- Run | Yrd Mat Min Sub Distress Signals 2 | . 2 . . Communications Jammed . | . . . . Distress Signals . | . . . . Times Spotted 37 | . 15 4 18 Peak Tracking Total 6 | . 6 2 2 Tactical Retreats . | . . . . Traps | -11 -10 -10 -10 ------- Run | Yrd Mat Min Sub Traps Triggered 4 | . 3 . 1 Indirectly . | . . . . Trap Hack Attempts . | . . . . Triggered . | . . . . Disarmed . | . . . . Reprogrammed . | . . . . Reused . | . . . . Traps Extracted . | . . . . Installed . | . . . . Triggered . | . . . . Machines | -11 -10 -10 -10 ---------- Run | Yrd Mat Min Sub Machines Disabled 1 | . 1 . . Max in Single Turn 1 | . 1 . . Machines Repaired . | . . . . Machines Dismantled . | . . . . Machines Sabotaged . | . . . . Overloaded Fab Kills . | . . . . Hacking | -11 -10 -10 -10 --------- Run | Yrd Mat Min Sub Machines Accessed 11 | . 10 . 1 Terminals 7 | . 7 . . Fabricators . | . . . . Repair Stations 1 | . 1 . . Recycling Units 2 | . 2 . . Scanalyzers . | . . . . Garrison Access . | . . . . Total Hacks 17 | . 16 . 1 Successful 13 | . 12 . 1 Failed 4 | . 4 . . Catastrophic . | . . . . Database Lockouts . | . . . . Manual 9 | . 9 . . Terminals 11 | . 11 . . Fabricators . | . . . . Repair Stations 1 | . 1 . . Recycling Units 4 | . 4 . . Scanalyzers . | . . . . Garrison Access . | . . . . Terminal Hacks 4 | . 3 . 1 Unreport Threat 1 | . 1 . . Zone Layout 2 | . 2 . . Proto ID Catalog 1 | . . . 1 Fabricator Hacks . | . . . . Repair Station Hacks . | . . . . Recycling Unit Hacks 1 | . 1 . . Retrieve Components 1 | . 1 . . Scanalyzer . | . . . . Garrison Access Hacks . | . . . . Unauthorized Hacks 8 | . 8 . . Terminals 7 | . 7 . . Botnet 7 | . 7 . . Fabricators . | . . . . Repair Stations 1 | . 1 . . Mechanics 1 | . 1 . . Recycling Units . | . . . . Scanalyzers . | . . . . Garrison Access . | . . . . Data Cores Recovered . | . . . . Used . | . . . . Hacking Detections 2 | . 2 . . Full Trace Events 1 | . 1 . . Feedback Events . | . . . . Feedback Blocked . | . . . . Robot Schematics Acquired . | . . . . Robots Built . | . . . . Authchips . | . . . . Time . | . . . . Total Robot Build Rating . | . . . . Part Schematics Acquired . | . . . . Parts Built . | . . . . Authchips . | . . . . Time . | . . . . Total Part Build Rating . | . . . . Part Studies Acquired . | . . . . Parts Repaired . | . . . . Time . | . . . . Parts Recycled . | . . . . Recycled Matter . | . . . . Retrieved Matter . | . . . . Retrieved Components 2 | . 2 . . Parts Scanalyzed . | . . . . Part Schematics Acquired . | . . . . Parts Damaged . | . . . . Bothacking | -11 -10 -10 -10 ------------ Run | Yrd Mat Min Sub Used RIF Installer . | . . . . Robots Hacked . | . . . . Non-combat . | . . . . Combat . | . . . . Robot Hacks Applied . | . . . . Relay Couplers Released . | . . . . Fabnet Peak Effective % . | . . . . Robots Rewired . | . . . . Allies Hacked . | . . . . Hacks Repelled . | . . . . Allies | -11 -10 -10 -10 -------- Run | Yrd Mat Min Sub Total Allies . | . . . . Largest Group . | . . . . Highest-Rated Group . | . . . . Highest-Rated Ally . | . . . . Total Orders . | . . . . Ally Attacks . | . . . . Total Damage . | . . . . Kills . | . . . . Allies Corrupted . | . . . . Allies Melted . | . . . . Intel | -11 -10 -10 -10 ------- Run | Yrd Mat Min Sub Active Infowar (turns) 9020 | 115 1443 1614 5848 Optics 2 | . . . 2 Terrain 9018 | 115 1443 1614 5846 Robot Analysis Total . | . . . . Derelict Logs Recovered 3 | . . 2 1 Drone Launches . | . . . . Drone Recoveries . | . . . . Exploration | -11 -10 -10 -10 ------------- Run | Yrd Mat Min Sub Turns Passed 9399 | 370 1443 1614 5972 Spaces Moved 3160 | 149 713 957 1341 Core 176 | 149 27 . . Treads 2984 | . 686 957 1341 Legs . | . . . . Wheels . | . . . . Hover . | . . . . Flight . | . . . . Fastest Speed 50 | 50 160 160 160 Average Speed 169 | 198 163 160 176 Slowest Speed 250 | 250 250 160 240 Overloaded Moves . | . . . . Propulsion Burnouts . | . . . . Robots Hopped . | . . . . Potential Cave-ins . | . . . . Cave-ins Triggered . | . . . . Exploration Rate (%) 71 | 9 96 99 82 Regions Visited 3 Branch Regions 2 Pre-discovered Areas . | . . . . Known Exits Taken 3 | 1 1 1 . Unknown Exits Taken . | . . . . Scrap Searched 16 | . . 1 15 Spaces Dug . | . . . . Terrain Destroyed 7 | . 7 . . Melee . | . . . . Projectile . | . . . . AOE 7 | . 7 . . Terrain Rammed . | . . . . Walls Destroyed . | . . . . Machines Disabled . | . . . . Actions | -11 -10 -10 -10 --------- Run | Yrd Mat Min Sub Total 6879 | 205 891 1000 4783 Wait 3460 | 25 107 16 3312 Move 3157 | 148 712 956 1341 Hop . | . . . . Pick Up 38 | 12 9 6 11 Fast Attach 9 | 1 . . 8 Attach 19 | 3 7 . 9 Detach 4 | . 1 . 3 Swap 7 | . 1 1 5 Drop 16 | 1 2 1 12 Fire 149 | 15 52 20 62 Melee 20 | . . . 20 Ram . | . . . . Kick . | . . . . Crush . | . . . . Escape Stasis . | . . . . Rewire . | . . . . Trap . | . . . . Miscellaneous . | . . . . Route ------- -11/Scrapyard -10/Materials (discovered 6 exits: *Mat x3 / *Min x2 / *Sub) -10/Mines (discovered 4 exits: *Mat x2 / Exi / *Sub) -10/Subcaves (discovered 3 exits: *Mat x2 / Rec) History --------- Turn | Location | Event 9 | -11/Scrapyard | Identified exit to Materials 9 | -11/Scrapyard | Discovered exit to Materials (range 15) 371 | -11/Scrapyard | Entered Materials 371 | -10/Materials | Evolved 1 slot: Utility x1 372 | -10/Materials | Build established: Hacker-Mutant 488 | -10/Materials | Identified exit to Materials 488 | -10/Materials | Discovered exit to Materials (range 17) 712 | -10/Materials | Identified exit to Mines 712 | -10/Materials | Discovered exit to Mines (range 7) 870 | -10/Materials | Discovered exit to Materials (range 5) 1151 | -10/Materials | Discovered exit to Mines (range 15) 1293 | -10/Materials | Discovered exit to Materials (range 15) 1720 | -10/Materials | Identified exit to Subcaves 1720 | -10/Materials | Discovered exit to Subcaves (range 9) 1814 | -10/Materials | Entered Mines 1876 | -10/Mines | Identified exit to Exiles 1876 | -10/Mines | Discovered exit to Exiles (range 16) 1953 | -10/Mines | Deemed a non-threat by the Exiles lab entrance 1994 | -10/Mines | Discovered exit to Subcaves (range 7) 2100 | -10/Mines | Discovered exit to Materials (range 9) 2333 | -10/Mines | Found a Scrap Suit stashed away for nefarious purposes 2336 | -10/Mines | Found Scrap Suit 2581 | -10/Mines | Learned Materials stockpile data 2701 | -10/Mines | YI-UF0 nonchalantly dropped a Grenade Launcher on the ground 2723 | -10/Mines | Discovered exit to Materials (range 3) 2811 | -10/Mines | A weapon hastily lodged in a ceiling crevice suddenly fell to the ground 3428 | -10/Mines | Entered Subcaves 3525 | -10/Subcaves | Identified exit to Materials 3525 | -10/Subcaves | Discovered exit to Materials (range 9) 4027 | -10/Subcaves | Build established: Scavenger-Mutant 4547 | -10/Subcaves | Discovered exit to Materials (range 12) 6159 | -10/Subcaves | Ambushed by Subdwellers from Twisted Machinery 6163 | -10/Subcaves | Core integrity fell below 50% 6207 | -10/Subcaves | Build established: Hacker-Mutant 6841 | -10/Subcaves | A swath of the cavern ceiling suddenly collapsed 7182 | -10/Subcaves | Identified exit to Recycling 7182 | -10/Subcaves | Discovered exit to Recycling (range 16) 8421 | -10/Subcaves | Core integrity fell below 20% 8468 | -10/Subcaves | Disturbed a concealed Subdweller 8940 | -10/Subcaves | Visited 4L-MR0's lab 9376 | -10/Subcaves | Disturbed a concealed Subdweller 9391 | -10/Subcaves | Disturbed a concealed Subdweller 9400 | -10/Subcaves | Destroyed by XX-40L(R) with Subdweller Laser Last Messages --------------- 09345_ Acquired Riot Gun. 09348_ Dropped Battle Cannon. 09348_ Acquired Battle Cannon. 09352_ Dropped Battle Cannon. 09354_ Acquired Battle Cannon. 09360_ Subatomizers dissect the Battle Rifle. 09360_ Acquired 28 matter. 09366_ Acquired 12 matter. 09374_ Subatomizers dissect the Battle Rifle, destroying it. 09376_ 12-4WF(R) angrily emerges from the Twisted Machinery. 09383_ 12-4WF(R) affixes Scrap Shield Fragment to Scrap Shield. 09384_ 12-4WF(R) misfires. 09386_ Imp. Terrain Scanner destroyed. 09394_ 12-4WF(R) affixes Scrap Shield Fragment to Scrap Shield. 09398_ Sub. Optics fried. 09398_ 12-4WF(R) destroyed. Map ----- +----------------------------------------------------+ | ###############" & &### ] ########### | | ################# #### " # ############ | | ################# ######### ############? | | ################## ######## ##########?## | | ### ############## ######### ############? | | ################# ####### ###?########## | | ################# ## ######## ############# | | ###################### ####### ####?####?### | | ####################### ######### ############## | | ###############?################# ########???## | | ?################################# # ########## | | ############?################### #####?##### | | ??###?################?## ## # # < ########### | | #?#####?################# ## ############ | | ???####################### ############### | | ?######################## # #############? | | ##?###############?###### ##### ##?########## | | ###?##################### #### ############# | | ######?################## ####### ########### | | ######################### ### ########### | | ########??############### # ########## | | ###################### # # ########## | | ################## ## # ### #######?## | | ################# ! ## ##### ##########? | | ################ =*[& # ############?? | | ################ ]@|*& ###########?? | | ################ ###R#[ #########?##? | | ################ ##""&## ###########? | | ############### #"%%"<# ####?###??# | | ######## #### #### ##"%]<# #?#######?# | | ####### ### # # ##%"## # #######?#??#? | | ####### # #### # ####?######### | | ###### # # # #############?# | | ##### # ## # # # * ############?# | | # ## ###### ## ## ## #####?###?####? | | ###### # # ###?##?###?#?## | | ## ######## "# ### #######?#??#### | | # # ### ######## # #^ ####?##?#?#### | | ######### ####### " ###?#######?# | | ################# # " # #^ #########?##?#? | | ################ ### ## ^######?#####?#? | | ######?######### ### ###^ ^##?##########?? | | #################### ## ###^^ #####?#######?? | | ##?############????##?### ######?##########??? | | ##?############???#?#?### ###############???? | | ####?####?#??##?###??#?## #############???#?? | | #####??#?#?##?#???#???## #########?###?#?##? | | #?###?????#??#??????### ############???#??? | | #####?#??????????#???# #########?##?#??#?? | | #?????????????#????## ###?#?##?###??? | +----------------------------------------------------+ Best States ------------- Heat Dissipation 25 Energy Generation 12 Energy Capacity 265 Matter Stores 300 Matter Capacity 300 Sight Range 16 Terrain Scan Range 16 Terrain Scan Density 85 Resistance: KI 35 Resistance: TH 35 Resistance: EX 35 Resistance: EM 35 Resistance: I 35 Resistance: S 35 Resistance: P 35 Evasion (%) 50 Recoil Reduction 2 Offensive Hacking 20 Item Schematics ----------------- None Robot Schematics ------------------ None Fabricated ------------ Nothing Repaired ---------- Nothing Studied --------- None Alien Tech Used ----------------- None Achievements -------------- None Challenges ------------ None Game ------ Seed MultitargetingGuidedDetector Manual? 0 Play Time 00:30:17 Cumulative 158.5 hours Start 2025.12.03 @ 10:30:17 End 2025.12.03 @ 10:56:53 Sessions 1 Manual Loads 0 Difficulty Explorer Special Mode None Game No. 205 Rogue 0 Adventurer 0 Explorer 205 Win Type - Total 0 Types 0/0/0/0/0/0/0/0/0/0 Lore% 70 Gallery% 66 Achievement% 52 Wizard Run 0 Options --------- Layout 1 ASCII 0 Keyboard 0 Movement Mouse Keybinds 0 Fullscreen 1 Font 24/Smallcaps Map View 50x35 Zoom Use 0% Tactical HUD 1 Map Filters NONE Filters NONE Steam 1 RUN: 08e60f6d-5b04-4981-89e5-1e42f62eb587